[Event "Chess Festival Groningen 2023 | A"]
[Site "Groningen, Netherlands"]
[Date "2023.12.21"]
[Round "1.1"]
[White "Kazakouski, Valery"]
[Black "Lambrechts, Koen"]
[Result "1-0"]
[TimeControl "90min/40moves + 30min + 30sec/move"]
[WhiteElo "2586"]
[BlackElo "2290"]

1. Nf3 {[%clk 01:30:12]} {[%emt 00:00:45]} e6 {[%clk 01:30:10]} {[%emt
00:00:45]} 2. g3 {[%clk 01:30:01]} {[%emt 00:00:40]} b6 {[%clk 01:30:26]}
{[%emt 00:00:28]} 3. Bg2 {[%clk 01:28:54]} {[%emt 00:01:26]} Bb7 {[%clk
01:30:50]} {[%emt 00:00:06]} 4. c4 {[%clk 01:28:57]} {[%emt 00:00:25]} f5
{[%clk 01:30:47]} {[%emt 00:00:34]} 5. O-O {[%clk 01:27:43]} {[%emt 00:01:51]}
Nf6 {[%clk 01:30:50]} {[%emt 00:00:19]} 6. Nc3 {[%clk 01:27:56]} {[%emt
00:00:24]} Ne4 {[%clk 01:29:00]} {[%emt 00:02:34]} 7. d4 {[%clk 01:24:38]}
{[%emt 00:03:25]} Be7 {[%clk 01:27:42]} {[%emt 00:01:57]} 8. d5 {[%clk
01:23:46]} {[%emt 00:01:14]} Nxc3 {[%clk 01:09:18]} {[%emt 00:18:57]} 9. bxc3
{[%clk 01:24:05]} {[%emt 00:00:12]} O-O {[%clk 01:09:32]} {[%emt 00:00:13]} 10.
Qc2 {[%clk 01:20:25]} {[%emt 00:04:08]} Na6 {[%clk 00:59:57]} {[%emt 00:10:05]}
11. Nd4 {[%clk 01:19:32]} {[%emt 00:01:25]} Nc5 {[%clk 00:57:03]} {[%emt
00:03:22]} 12. Rd1 {[%clk 01:15:00]} {[%emt 00:05:21]} Qc8 {[%clk 00:48:31]}
{[%emt 00:08:42]} 13. Ba3 {[%clk 01:13:51]} {[%emt 00:01:49]} g6 {[%clk
00:41:36]} {[%emt 00:07:15]} 14. f4 {[%clk 00:45:47]} {[%emt 00:28:34]} Re8
{[%clk 00:38:21]} {[%emt 00:03:45]} 15. g4 {[%clk 00:43:34]} {[%emt 00:02:43]}
Bd6 {[%clk 00:32:19]} {[%emt 00:06:31]} 16. Rf1 {[%clk 00:42:01]} {[%emt
00:02:06]} Qd8 {[%clk 00:22:52]} {[%emt 00:09:56]} 17. Rae1 {[%clk 00:35:30]}
{[%emt 00:07:27]} Qh4 {[%clk 00:21:41]} {[%emt 00:01:13]} 18. Nb3 {[%clk
00:22:29]} {[%emt 00:13:31]} Nxb3 {[%clk 00:14:55]} {[%emt 00:07:17]} 19. Bxd6
{[%clk 00:22:42]} {[%emt 00:00:19]} cxd6 {[%clk 00:15:19]} {[%emt 00:00:14]} 20.
axb3 {[%clk 00:22:36]} {[%emt 00:00:26]} Qxg4 {[%clk 00:15:40]} {[%emt
00:00:14]} 21. Qd3 {[%clk 00:16:28]} {[%emt 00:06:32]} e5 {[%clk 00:13:43]}
{[%emt 00:02:29]} 22. e4 {[%clk 00:13:38]} {[%emt 00:03:23]} exf4 {[%clk
00:12:16]} {[%emt 00:01:53]} 23. exf5 {[%clk 00:13:53]} {[%emt 00:00:38]} g5
{[%clk 00:07:23]} {[%emt 00:05:07]} 24. Kh1 {[%clk 00:09:14]} {[%emt 00:05:07]}
Qh4 {[%clk 00:06:56]} {[%emt 00:00:53]} 25. Re4 {[%clk 00:09:25]} {[%emt
00:00:18]} Re5 {[%clk 00:06:54]} {[%emt 00:00:40]} 26. Rxe5 {[%clk 00:04:41]}
{[%emt 00:05:07]} dxe5 {[%clk 00:07:19]} {[%emt 00:00:12]} 27. c5 {[%clk
00:05:08]} {[%emt 00:00:15]} Rd8 {[%clk 00:03:27]} {[%emt 00:04:05]} 28. Qe4
{[%clk 00:05:16]} {[%emt 00:00:21]} bxc5 {[%clk 00:01:22]} {[%emt 00:02:34]} 29.
Qxe5 {[%clk 00:05:31]} {[%emt 00:00:26]} {time} 1-0

[Event "Chess Festival Groningen 2023 | A"]
[Site "Groningen, Netherlands"]
[Date "2023.12.21"]
[Round "1.2"]
[White "Besou, Hussain"]
[Black "Reinderman, Dimitri"]
[Result "0-1"]
[TimeControl "90min/40moves + 30min + 30sec/move"]
[WhiteElo "2280"]
[BlackElo "2580"]

1. d4 {[%clk 01:30:57]} {[%emt 00:00:16]} f5 {[%clk 01:30:56]} 2. c4 {[%clk
01:31:18]} {[%emt 00:00:09]} Nf6 {[%clk 01:31:19]} {[%emt 00:00:03]} 3. Nf3
{[%clk 01:31:39]} {[%emt 00:00:09]} g6 {[%clk 01:31:41]} {[%emt 00:00:20]} 4.
g3 {[%clk 01:31:56]} Bg7 {[%clk 01:32:07]} {[%emt 00:00:08]} 5. Bg2 {[%clk
01:32:18]} {[%emt 00:00:12]} O-O {[%clk 01:32:30]} {[%emt 00:00:04]} 6. O-O
{[%clk 01:32:41]} {[%emt 00:00:03]} d6 {[%clk 01:32:56]} {[%emt 00:00:13]} 7.
Nc3 {[%clk 01:32:11]} {[%emt 00:00:50]} c6 {[%clk 01:33:20]} {[%emt 00:00:07]}
8. Bg5 {[%clk 01:27:10]} {[%emt 00:05:32]} h6 {[%clk 01:29:18]} {[%emt
00:04:29]} 9. Bxf6 {[%clk 01:25:16]} {[%emt 00:02:20]} Bxf6 {[%clk 01:28:57]}
{[%emt 00:00:54]} 10. e4 {[%clk 01:25:26]} {[%emt 00:00:17]} e5 {[%clk
01:28:55]} {[%emt 00:00:32]} 11. Qd2 {[%clk 01:15:45]} {[%emt 00:10:11]} Kh7
{[%clk 01:28:57]} {[%emt 00:00:29]} 12. Rfe1 {[%clk 01:14:58]} {[%emt
00:01:16]} Qc7 {[%clk 01:27:23]} {[%emt 00:02:08]} 13. d5 {[%clk 00:55:30]}
{[%emt 00:20:19]} c5 {[%clk 01:24:24]} {[%emt 00:03:04]} 14. Qd3 {[%clk
00:53:36]} {[%emt 00:02:35]} Na6 {[%clk 01:19:42]} {[%emt 00:05:02]} 15. a3
{[%clk 00:52:02]} {[%emt 00:02:06]} Qg7 {[%clk 01:17:59]} {[%emt 00:02:10]} 16.
Rab1 {[%clk 00:40:40]} {[%emt 00:11:53]} Bd7 {[%clk 01:13:45]} {[%emt
00:04:45]} 17. b4 {[%clk 00:39:05]} {[%emt 00:02:03]} Rf7 {[%clk 01:13:05]}
{[%emt 00:01:30]} 18. h3 {[%clk 00:33:18]} {[%emt 00:05:56]} Raf8 {[%clk
01:04:05]} {[%emt 00:09:31]} 19. Nh2 {[%clk 00:28:24]} {[%emt 00:05:21]} Bd8
{[%clk 01:00:38]} {[%emt 00:03:59]} 20. Rb2 {[%clk 00:24:34]} {[%emt 00:04:38]}
Bb6 {[%clk 00:58:02]} {[%emt 00:02:51]} 21. b5 {[%clk 00:23:44]} {[%emt
00:01:18]} Nc7 {[%clk 00:57:40]} {[%emt 00:00:53]} 22. Rf1 {[%clk 00:22:24]}
{[%emt 00:01:52]} Ne8 {[%clk 00:55:10]} {[%emt 00:03:01]} 23. Re2 {[%clk
00:17:27]} {[%emt 00:05:22]} Kh8 {[%clk 00:51:17]} {[%emt 00:04:30]} 24. f3
{[%clk 00:16:31]} {[%emt 00:01:20]} Ba5 {[%clk 00:46:54]} {[%emt 00:04:53]} 25.
Nd1 {[%clk 00:15:30]} {[%emt 00:01:30]} Nf6 {[%clk 00:46:28]} {[%emt 00:00:56]}
26. g4 {[%clk 00:14:21]} {[%emt 00:01:39]} Nh7 {[%clk 00:45:08]} {[%emt
00:01:54]} 27. Nf2 {[%clk 00:11:29]} {[%emt 00:03:16]} Bd8 {[%clk 00:43:44]}
{[%emt 00:02:16]} 28. Kh1 {[%clk 00:10:23]} {[%emt 00:01:15]} Bh4 {[%clk
00:42:29]} {[%emt 00:01:46]} 29. Nd1 {[%clk 00:10:28]} {[%emt 00:00:42]} h5
{[%clk 00:39:44]} {[%emt 00:02:57]} 30. Ne3 {[%clk 00:09:14]} {[%emt 00:01:44]}
Bg3 {[%clk 00:29:31]} {[%emt 00:10:44]} 31. Rg1 {[%clk 00:08:51]} {[%emt
00:00:53]} Bxh2 {[%clk 00:24:25]} {[%emt 00:05:50]} 32. Kxh2 {[%clk 00:09:15]}
hxg4 {[%clk 00:24:47]} {[%emt 00:00:05]} 0-1

[Event "Chess Festival Groningen 2023 | A"]
[Site "Groningen, Netherlands"]
[Date "2023.12.21"]
[Round "1.3"]
[White "Romanov, Evgeny"]
[Black "Mierins, Emils Janis"]
[Result "1-0"]
[TimeControl "90min/40moves + 30min + 30sec/move"]
[WhiteElo "2561"]
[BlackElo "2258"]

1. d4 {[%clk 01:28:01]} Nf6 {[%clk 01:30:53]} {[%emt 00:00:28]} 2. c4 {[%clk
01:28:18]} {[%emt 00:00:12]} e6 {[%clk 01:31:15]} 3. Nf3 {[%clk 01:28:16]}
{[%emt 00:00:20]} b6 {[%clk 01:31:35]} {[%emt 00:00:15]} 4. g3 {[%clk
01:28:14]} {[%emt 00:00:29]} Bb7 {[%clk 01:31:59]} {[%emt 00:00:31]} 5. Bg2
{[%clk 01:28:38]} {[%emt 00:00:10]} Bb4+ {[%clk 01:32:20]} 6. Bd2 {[%clk
01:27:30]} {[%emt 00:01:17]} a5 {[%clk 01:32:45]} {[%emt 00:00:15]} 7. O-O
{[%clk 01:27:35]} {[%emt 00:00:18]} O-O {[%clk 01:33:09]} {[%emt 00:00:04]} 8.
Bf4 {[%clk 01:27:34]} {[%emt 00:00:30]} Be7 {[%clk 01:33:27]} {[%emt 00:00:43]}
9. Qc2 {[%clk 01:25:40]} {[%emt 00:01:53]} Be4 {[%clk 01:29:49]} {[%emt
00:05:00]} 10. Qd2 {[%clk 01:24:30]} {[%emt 00:01:12]} h6 {[%clk 01:20:42]}
{[%emt 00:09:14]} 11. Rd1 {[%clk 01:17:46]} {[%emt 00:07:14]} g5 {[%clk
00:46:32]} {[%emt 00:34:40]} 12. Be5 {[%clk 01:11:36]} {[%emt 00:06:39]} Nh7
{[%clk 00:43:56]} {[%emt 00:03:06]} 13. Nc3 {[%clk 01:09:23]} {[%emt 00:03:11]}
Bb7 {[%clk 00:39:46]} {[%emt 00:04:33]} 14. d5 {[%clk 01:08:27]} {[%emt
00:01:16]} d6 {[%clk 00:39:02]} {[%emt 00:01:07]} 15. dxe6 {[%clk 00:57:42]}
{[%emt 00:11:46]} dxe5 {[%clk 00:37:05]} {[%emt 00:01:52]} 16. exf7+ {[%clk
00:55:54]} {[%emt 00:02:46]} Kh8 {[%clk 00:27:53]} {[%emt 00:09:14]} 17. Qc2
{[%clk 00:53:11]} {[%emt 00:03:13]} Bd6 {[%clk 00:28:00]} {[%emt 00:00:30]} 18.
Nxe5 {[%clk 00:52:38]} {[%emt 00:00:55]} Bxg2 {[%clk 00:28:02]} {[%emt
00:00:40]} 19. Ng6+ {[%clk 00:51:53]} {[%emt 00:01:04]} Kg7 {[%clk 00:28:24]}
{[%emt 00:00:27]} 20. Nxf8 {[%clk 00:52:11]} Qxf8 {[%clk 00:28:06]} {[%emt
00:00:40]} 21. Kxg2 {[%clk 00:52:33]} {[%emt 00:00:35]} Qxf7 {[%clk 00:27:39]}
{[%emt 00:00:30]} 22. Qe4 {[%clk 00:52:06]} {[%emt 00:00:57]} Ra7 {[%clk
00:26:05]} {[%emt 00:02:08]} 23. Nb5 {[%clk 00:49:49]} {[%emt 00:02:44]} Nf6
{[%clk 00:25:49]} {[%emt 00:00:48]} 24. Qf3 {[%clk 00:46:42]} {[%emt 00:03:46]}
g4 {[%clk 00:25:41]} {[%emt 00:00:26]} 25. Qf5 {[%clk 00:47:01]} {[%emt
00:00:35]} Ra8 {[%clk 00:24:54]} {[%emt 00:00:54]} 26. Nxd6 {[%clk 00:41:57]}
{[%emt 00:05:33]} cxd6 {[%clk 00:25:18]} {[%emt 00:00:10]} 27. Rxd6 {[%clk
00:42:12]} {[%emt 00:00:13]} Nbd7 {[%clk 00:25:11]} {[%emt 00:00:35]} 28. Rad1
{[%clk 00:42:22]} {[%emt 00:00:53]} Nc5 {[%clk 00:18:39]} {[%emt 00:06:37]} 29.
Rxb6 {[%clk 00:41:15]} {[%emt 00:02:12]} Nce4 {[%clk 00:18:53]} 30. f3 {[%clk
00:27:55]} {[%emt 00:13:24]} Ng5 {[%clk 00:18:58]} {[%emt 00:00:42]} 31. Rdd6
{[%clk 00:26:22]} {[%emt 00:01:45]} gxf3+ {[%clk 00:18:30]} {[%emt 00:00:58]}
32. exf3 {[%clk 00:26:44]} {[%emt 00:00:36]} Ngh7 {[%clk 00:18:43]} {[%emt
00:00:08]} 33. Qe6 {[%clk 00:25:47]} {[%emt 00:01:11]} Qf8 {[%clk 00:17:23]}
{[%emt 00:02:09]} 34. Rb7+ {[%clk 00:25:30]} {[%emt 00:00:29]} Kh8 {[%clk
00:17:46]} {[%emt 00:00:04]} 35. Rf7 {[%clk 00:24:50]} {[%emt 00:01:11]} 1-0

[Event "Chess Festival Groningen 2023 | A"]
[Site "Groningen, Netherlands"]
[Date "2023.12.21"]
[Round "1.4"]
[White "Kobo, Ori"]
[Black "Grooten, Herman"]
[Result "1-0"]
[TimeControl "90min/40moves + 30min + 30sec/move"]
[WhiteElo "2541"]
[BlackElo "2243"]

1. d4 {[%clk 01:30:09]} {[%emt 00:00:54]} Nf6 {[%clk 01:30:53]} {[%emt
00:00:05]} 2. Nf3 {[%clk 01:30:20]} {[%emt 00:00:19]} e6 {[%clk 01:31:13]}
{[%emt 00:00:09]} 3. e3 {[%clk 01:30:39]} {[%emt 00:00:26]} b6 {[%clk
01:31:33]} 4. Bd3 {[%clk 01:30:53]} {[%emt 00:00:11]} Bb7 {[%clk 01:31:46]}
{[%emt 00:00:18]} 5. O-O {[%clk 01:31:03]} {[%emt 00:00:19]} d6 {[%clk
01:29:40]} {[%emt 00:02:42]} 6. c4 {[%clk 01:29:44]} {[%emt 00:01:44]} Nbd7
{[%clk 01:26:50]} {[%emt 00:03:20]} 7. Nc3 {[%clk 01:28:55]} {[%emt 00:01:18]}
g6 {[%clk 01:26:29]} {[%emt 00:00:52]} 8. e4 {[%clk 01:28:33]} {[%emt
00:00:57]} Bg7 {[%clk 01:25:45]} {[%emt 00:01:09]} 9. Rb1 {[%clk 01:25:43]}
{[%emt 00:03:20]} O-O {[%clk 01:24:52]} {[%emt 00:01:23]} 10. b4 {[%clk
01:16:30]} {[%emt 00:09:43]} c5 {[%clk 01:20:44]} {[%emt 00:04:38]} 11. bxc5
{[%clk 01:15:20]} {[%emt 00:01:39]} dxc5 {[%clk 01:21:04]} {[%emt 00:00:11]} 12.
d5 {[%clk 01:15:40]} {[%emt 00:00:15]} Ng4 {[%clk 01:14:22]} {[%emt 00:07:07]}
13. Bb2 {[%clk 01:15:04]} {[%emt 00:01:06]} Nge5 {[%clk 01:04:56]} {[%emt
00:09:55]} 14. Nxe5 {[%clk 01:14:59]} {[%emt 00:00:38]} Nxe5 {[%clk 01:04:51]}
{[%emt 00:00:32]} 15. Be2 {[%clk 01:13:41]} {[%emt 00:01:48]} g5 {[%clk
01:03:51]} {[%emt 00:01:36]} 16. Re1 {[%clk 00:58:13]} {[%emt 00:15:53]} Ng6
{[%clk 00:58:45]} {[%emt 00:05:39]} 17. Bf1 {[%clk 00:56:55]} {[%emt 00:01:46]}
Be5 {[%clk 00:55:06]} {[%emt 00:04:06]} 18. Nb5 {[%clk 00:44:23]} {[%emt
00:13:06]} Qf6 {[%clk 00:49:53]} {[%emt 00:05:49]} 19. Qd2 {[%clk 00:40:46]}
{[%emt 00:03:58]} Rfd8 {[%clk 00:41:41]} {[%emt 00:08:42]} 20. a4 {[%clk
00:39:39]} {[%emt 00:01:41]} Bc6 {[%clk 00:37:43]} {[%emt 00:04:23]} 21. a5
{[%clk 00:32:27]} {[%emt 00:07:43]} Bxb5 {[%clk 00:29:24]} {[%emt 00:08:48]} 22.
Bxe5 {[%clk 00:32:46]} {[%emt 00:00:11]} Nxe5 {[%clk 00:29:33]} {[%emt
00:00:21]} 23. Rxb5 {[%clk 00:32:58]} {[%emt 00:00:18]} Rd6 {[%clk 00:27:26]}
{[%emt 00:02:36]} 24. Reb1 {[%clk 00:24:16]} {[%emt 00:09:13]} Nd7 {[%clk
00:26:34]} {[%emt 00:01:22]} 25. R5b3 {[%clk 00:22:27]} {[%emt 00:02:23]} Kh8
{[%clk 00:25:49]} {[%emt 00:01:11]} 26. Rf3 {[%clk 00:19:54]} {[%emt 00:03:07]}
Qg7 {[%clk 00:24:02]} {[%emt 00:02:13]} 27. Rg3 {[%clk 00:19:58]} {[%emt
00:00:26]} Rg8 {[%clk 00:23:45]} {[%emt 00:00:47]} 28. f4 {[%clk 00:14:48]}
{[%emt 00:05:40]} f6 {[%clk 00:18:35]} {[%emt 00:05:39]} 29. Be2 {[%clk
00:12:27]} {[%emt 00:02:52]} Qe7 {[%clk 00:15:38]} {[%emt 00:03:26]} 30. axb6
{[%clk 00:08:46]} {[%emt 00:04:11]} axb6 {[%clk 00:14:41]} {[%emt 00:01:27]} 31.
Ra1 {[%clk 00:05:06]} {[%emt 00:04:18]} exd5 {[%clk 00:14:11]} {[%emt
00:01:01]} 32. exd5 {[%clk 00:05:15]} {[%emt 00:00:12]} gxf4 {[%clk 00:10:27]}
{[%emt 00:04:14]} 33. Rxg8+ {[%clk 00:03:44]} {[%emt 00:02:05]} Kxg8 {[%clk
00:10:52]} {[%emt 00:00:04]} 34. Qxf4 {[%clk 00:03:45]} {[%emt 00:00:27]} Qe5
{[%clk 00:10:29]} {[%emt 00:00:53]} 35. Ra8+ {[%clk 00:02:35]} {[%emt
00:01:41]} Kf7 {[%clk 00:07:50]} {[%emt 00:03:06]} 36. Qh6 {[%clk 00:02:07]}
{[%emt 00:00:59]} Qd4+ {[%clk 00:04:20]} {[%emt 00:04:00]} 37. Kf1 {[%clk
00:02:21]} {[%emt 00:00:16]} f5 {[%clk 00:04:32]} {[%emt 00:00:17]} 38. Bh5+
{[%clk 00:02:04]} {[%emt 00:00:46]} Ke7 {[%clk 00:04:57]} {[%emt 00:00:12]} 39.
Re8# {[%emt 00:00:04]} 1-0

[Event "Chess Festival Groningen 2023 | A"]
[Site "Groningen, Netherlands"]
[Date "2023.12.21"]
[Round "1.5"]
[White "Toktomushev, Teimur"]
[Black "Stremavicius, Titas"]
[Result "0-1"]
[TimeControl "90min/40moves + 30min + 30sec/move"]
[WhiteElo "2249"]
[BlackElo "2550"]

1. d4 {[%clk 01:30:56]} {[%emt 00:00:04]} Nf6 {[%clk 01:30:12]} {[%emt
00:00:48]} 2. c4 {[%clk 01:31:11]} {[%emt 00:00:13]} e6 {[%clk 01:30:34]}
{[%emt 00:00:41]} 3. Nf3 {[%clk 01:31:32]} d5 {[%clk 01:30:53]} 4. Nc3 {[%clk
01:31:47]} {[%emt 00:00:05]} Nbd7 {[%clk 01:31:15]} {[%emt 00:00:12]} 5. Bf4
{[%clk 01:19:53]} {[%emt 00:12:17]} dxc4 {[%clk 01:31:06]} {[%emt 00:00:57]} 6.
e3 {[%clk 01:15:25]} {[%emt 00:04:44]} Nd5 {[%clk 01:31:09]} {[%emt 00:00:25]}
7. Bxc4 {[%clk 01:11:07]} {[%emt 00:05:22]} Nxf4 {[%clk 01:31:28]} 8. exf4
{[%clk 01:11:32]} Nb6 {[%clk 01:31:48]} 9. Bb3 {[%clk 01:07:09]} {[%emt
00:04:45]} g6 {[%clk 01:32:05]} {[%emt 00:00:17]} 10. h4 {[%clk 00:59:55]}
{[%emt 00:07:38]} Bg7 {[%clk 01:26:54]} {[%emt 00:05:40]} 11. h5 {[%clk
00:57:11]} {[%emt 00:03:15]} Bd7 {[%clk 01:26:32]} {[%emt 00:00:52]} 12. Ne5
{[%clk 00:49:35]} {[%emt 00:08:27]} Qe7 {[%clk 01:24:21]} {[%emt 00:02:22]} 13.
Qg4 {[%clk 00:34:51]} {[%emt 00:15:12]} O-O-O {[%clk 01:01:28]} {[%emt
00:23:48]} 14. O-O-O {[%clk 00:29:04]} {[%emt 00:05:51]} Kb8 {[%clk 01:01:39]}
{[%emt 00:00:26]} 15. Qh4 {[%clk 00:08:39]} {[%emt 00:21:08]} Bf6 {[%clk
01:01:05]} {[%emt 00:00:44]} 16. Qg3 {[%clk 00:09:03]} {[%emt 00:00:13]} Bc6
{[%clk 00:56:36]} {[%emt 00:04:54]} 17. Rhe1 {[%clk 00:00:54]} {[%emt
00:08:37]} Bd5 {[%clk 00:53:23]} {[%emt 00:04:14]} 18. Bxd5 {[%clk 00:01:05]}
{[%emt 00:00:05]} Nxd5 {[%clk 00:53:44]} 19. Ne4 {[%clk 00:00:46]} {[%emt
00:00:42]} gxh5 {[%clk 00:52:35]} {[%emt 00:01:37]} 20. Rh1 {[%clk 00:00:35]}
{[%emt 00:00:53]} Bxe5 {[%clk 00:35:03]} {[%emt 00:17:51]} 21. fxe5 {[%clk
00:00:57]} {[%emt 00:00:17]} Qe8 {[%clk 00:35:26]} {[%emt 00:00:09]} 22. Qf3
{[%clk 00:00:37]} {[%emt 00:01:18]} Nb4 {[%clk 00:32:35]} {[%emt 00:03:16]} 23.
Kb1 {[%clk 00:00:34]} {[%emt 00:00:04]} Qc6 {[%clk 00:28:12]} {[%emt 00:04:49]}
24. Rd2 {[%clk 00:00:51]} {[%emt 00:00:20]} Qd5 {[%clk 00:25:49]} {[%emt
00:02:45]} 25. b3 {[%clk 00:00:36]} {[%emt 00:00:49]} Nc6 {[%clk 00:21:16]}
{[%emt 00:04:58]} 26. Rhd1 {[%clk 00:00:35]} {[%emt 00:00:52]} Ne7 {[%clk
00:20:29]} {[%emt 00:00:59]} 27. Ng5 {[%clk 00:00:34]} {[%emt 00:00:29]} Qxf3
{[%clk 00:16:48]} {[%emt 00:04:13]} 28. gxf3 {[%clk 00:00:53]} {[%emt
00:00:09]} Rdf8 {[%clk 00:16:35]} {[%emt 00:00:43]} 29. Rh1 {[%clk 00:01:14]}
{[%emt 00:00:32]} h6 {[%clk 00:16:40]} {[%emt 00:00:13]} 30. Ne4 {[%clk
00:01:37]} {[%emt 00:00:05]} Rd8 {[%clk 00:16:42]} {[%emt 00:00:19]} 31. Rxh5
{[%clk 00:00:45]} {[%emt 00:01:22]} Nf5 {[%clk 00:15:53]} {[%emt 00:01:37]} 32.
d5 {[%clk 00:00:36]} {[%emt 00:00:52]} Ng7 {[%clk 00:16:21]} 33. Rh1 {[%clk
00:00:32]} {[%emt 00:00:37]} exd5 {[%clk 00:16:06]} {[%emt 00:00:16]} 34. Nf6
{[%clk 00:00:53]} {[%emt 00:00:18]} c6 {[%clk 00:16:20]} {[%emt 00:00:11]} 35.
f4 {[%clk 00:00:34]} {[%emt 00:00:42]} h5 {[%clk 00:15:45]} {[%emt 00:01:06]}
36. Rg1 {[%clk 00:00:37]} {[%emt 00:00:31]} Ne8 {[%clk 00:16:00]} {[%emt
00:00:11]} 37. Nxe8 {[%clk 00:00:35]} {[%emt 00:00:33]} Rdxe8 {[%clk 00:16:24]}
{[%emt 00:00:08]} 38. Rg7 {[%clk 00:00:34]} {[%emt 00:00:29]} h4 {[%clk
00:10:02]} {[%emt 00:06:52]} 39. f3 {[%clk 00:00:45]} {[%emt 00:00:19]} Reg8
{[%clk 00:09:47]} {[%emt 00:00:44]} 40. Rg4 {[%clk 00:00:33]} {[%emt 00:00:52]}
h3 {[%clk 00:06:40]} {[%emt 00:03:27]} 41. Rh2 {[%clk 00:00:50]} {[%emt
00:00:16]} Rxg4 {[%clk 00:06:59]} {[%emt 00:00:09]} 42. fxg4 {[%clk 00:01:16]}
{[%emt 00:00:08]} Kc7 {[%clk 00:06:49]} {[%emt 00:01:15]} 43. Kc2 {[%clk
00:01:19]} {[%emt 00:00:04]} Rh4 {[%clk 00:06:27]} {[%emt 00:00:36]} 44. f5
{[%clk 00:01:32]} {[%emt 00:00:43]} Kd7 {[%clk 00:06:52]} 45. Kd3 {[%clk
00:24:09]} {[%emt 00:07:37]} Ke7 {[%clk 00:35:44]} {[%emt 00:01:33]} 46. g5
{[%clk 00:19:52]} {[%emt 00:04:53]} Rh5 {[%clk 00:34:56]} {[%emt 00:01:11]} 47.
g6 {[%clk 00:16:38]} {[%emt 00:03:51]} fxg6 {[%clk 00:32:45]} {[%emt 00:02:55]}
48. fxg6 {[%clk 00:17:04]} {[%emt 00:00:09]} Ke6 {[%clk 00:32:46]} {[%emt
00:00:06]} 49. Kd4 {[%clk 00:08:04]} {[%emt 00:09:28]} b6 {[%clk 00:32:03]}
{[%emt 00:01:42]} 50. b4 {[%clk 00:04:43]} {[%emt 00:03:21]} Rh4+ {[%clk
00:31:45]} {[%emt 00:00:48]} 51. Ke3 {[%clk 00:00:57]} {[%emt 00:04:19]} Kxe5
{[%clk 00:31:36]} {[%emt 00:00:36]} 52. g7 {[%clk 00:01:19]} {[%emt 00:00:31]}
Rg4 {[%clk 00:32:02]} {[%emt 00:00:09]} 53. Rxh3 {[%clk 00:01:44]} Rxg7 {[%clk
00:32:27]} 54. Rh5+ {[%clk 00:02:08]} Kd6 {[%clk 00:32:41]} {[%emt 00:00:06]}
55. Rh6+ {[%clk 00:01:22]} {[%emt 00:01:14]} Kc7 {[%clk 00:32:50]} {[%emt
00:00:22]} 56. Kd4 {[%clk 00:01:47]} {[%emt 00:00:31]} a5 {[%clk 00:32:54]}
{[%emt 00:00:10]} 57. b5 {[%clk 00:00:54]} {[%emt 00:01:12]} Rg4+ {[%clk
00:33:12]} {[%emt 00:00:14]} 58. Ke5 {[%clk 00:01:21]} {[%emt 00:00:05]} Re4+
{[%clk 00:33:31]} {[%emt 00:00:07]} 0-1

[Event "Chess Festival Groningen 2023 | A"]
[Site "Groningen, Netherlands"]
[Date "2023.12.21"]
[Round "1.6"]
[White "Smeets, Kobe"]
[Black "Tiviakov, Sergei"]
[Result "1/2-1/2"]
[TimeControl "90min/40moves + 30min + 30sec/move"]
[WhiteElo "2239"]
[BlackElo "2536"]

1. e4 {[%clk 01:30:57]} d5 {[%clk 01:30:55]} {[%emt 00:00:06]} 2. exd5 {[%clk
01:30:52]} {[%emt 00:00:35]} Qxd5 {[%clk 01:31:20]} {[%emt 00:00:06]} 3. Nc3
{[%clk 01:30:52]} {[%emt 00:00:31]} Qd6 {[%clk 01:31:45]} {[%emt 00:00:04]} 4.
d4 {[%clk 01:30:07]} {[%emt 00:01:13]} c6 {[%clk 01:32:09]} {[%emt 00:00:06]} 5.
Nf3 {[%clk 01:26:49]} {[%emt 00:03:48]} Bg4 {[%clk 01:32:06]} {[%emt 00:00:41]}
6. Bc4 {[%clk 01:19:43]} {[%emt 00:07:29]} Nf6 {[%clk 01:32:15]} {[%emt
00:00:20]} 7. Be3 {[%clk 01:13:22]} {[%emt 00:06:51]} e6 {[%clk 01:32:06]}
{[%emt 00:00:38]} 8. Bb3 {[%clk 01:02:26]} {[%emt 00:11:26]} Nbd7 {[%clk
01:32:08]} {[%emt 00:00:29]} 9. h3 {[%clk 01:01:33]} {[%emt 00:01:22]} Bh5
{[%clk 01:32:31]} {[%emt 00:00:12]} 10. Qe2 {[%clk 01:00:00]} {[%emt 00:02:02]}
Be7 {[%clk 01:30:02]} {[%emt 00:02:56]} 11. O-O-O {[%clk 00:51:20]} {[%emt
00:09:09]} O-O-O {[%clk 01:29:57]} {[%emt 00:00:35]} 12. Kb1 {[%clk 00:47:31]}
{[%emt 00:04:19]} Qc7 {[%clk 01:24:30]} {[%emt 00:05:58]} 13. g4 {[%clk
00:45:57]} {[%emt 00:02:06]} Bg6 {[%clk 01:24:29]} {[%emt 00:00:34]} 14. Ne5
{[%clk 00:35:32]} {[%emt 00:10:48]} Nxe5 {[%clk 01:23:17]} {[%emt 00:01:43]} 15.
Bf4 {[%clk 00:33:07]} {[%emt 00:02:55]} Nfd7 {[%clk 01:20:03]} {[%emt
00:03:44]} 16. dxe5 {[%clk 00:33:06]} {[%emt 00:00:39]} Nc5 {[%clk 01:20:00]}
{[%emt 00:00:25]} 17. Bc1 {[%clk 00:29:02]} {[%emt 00:04:37]} Kb8 {[%clk
00:59:26]} {[%emt 00:21:04]} 18. f4 {[%clk 00:27:22]} {[%emt 00:02:11]} f6
{[%clk 00:59:22]} {[%emt 00:00:33]} 19. exf6 {[%clk 00:19:04]} {[%emt
00:08:45]} Bxf6 {[%clk 00:59:40]} {[%emt 00:00:12]} 20. Qf2 {[%clk 00:18:42]}
{[%emt 00:00:52]} Qa5 {[%clk 00:56:57]} {[%emt 00:03:19]} 21. Be3 {[%clk
00:15:32]} {[%emt 00:03:33]} Nxb3 {[%clk 00:48:23]} {[%emt 00:09:06]} 22. axb3
{[%clk 00:16:01]} Bxc3 {[%clk 00:45:51]} {[%emt 00:03:01]} 23. bxc3 {[%clk
00:16:29]} {[%emt 00:00:06]} Be4 {[%clk 00:42:22]} {[%emt 00:03:59]} 24. Rhe1
{[%clk 00:09:29]} {[%emt 00:07:26]} Qxc3 {[%clk 00:42:38]} {[%emt 00:00:18]} 25.
Bxa7+ {[%clk 00:08:29]} {[%emt 00:01:31]} Kc8 {[%clk 00:21:54]} {[%emt
00:21:12]} 26. Bd4 {[%clk 00:07:48]} {[%emt 00:01:12]} Rxd4 {[%clk 00:19:52]}
{[%emt 00:02:33]} 27. Qxd4 {[%clk 00:04:04]} {[%emt 00:04:09]} Qxb3+ {[%clk
00:06:09]} {[%emt 00:14:12]} 28. Ka1 {[%clk 00:04:33]} Qa3+ {[%clk 00:06:32]}
{[%emt 00:00:15]} 29. Kb1 {[%clk 00:04:59]} Qb3+ {[%clk 00:06:58]} {[%emt
00:00:04]} 30. Ka1 {[%clk 00:05:25]} {[%emt 00:00:05]} 1/2-1/2